fUST/lending_fUST_20250531
["ID","MTS","AMOUNT","RATE_DAILY","PERIOD"]
[363259165,1748652648231,-1500.0,0.00017505,2]
[363259167,1748652648240,-500.0,0.00017533,2]
[363259169,1748652648251,-160.0,0.00017533,2]
[363259171,1748652648261,-430.0,0.00017533,2]
[363259173,1748652648272,-430.0,0.00017533,2]
[363259175,1748652648282,-1175.73,0.00017533,2]
[363259177,1748652648291,-430.0,0.00017533,2]
[363259179,1748652648301,-2949.65,0.00017533,2]
[363259181,1748652648311,-3181.73,0.00017533,2]
[363259183,1748652648320,-804.95,0.00017533,2]
[363259185,1748652648330,-430.0,0.00017533,2]
[363259187,1748652648339,-1830.99,0.00017533,2]
[363259189,1748652648349,-430.0,0.00017533,2]
[363259191,1748652648359,-1190.24,0.00017533,2]
[363259193,1748652648368,-430.0,0.00017533,2]
[363259195,1748652648378,-430.0,0.00017534,2]
[363259197,1748652648388,-430.0,0.00017534,2]
[363259199,1748652648397,-430.0,0.00017534,2]
[363259201,1748652648406,-430.0,0.00017534,2]
[363259203,1748652648416,-442.38,0.00017534,2]
[363259205,1748652648425,-1259.52,0.00017534,2]
[363259207,1748652648435,-430.0,0.00017534,2]
[363259209,1748652648445,-430.0,0.00017534,2]
[363259211,1748652648455,-1601.0,0.00017534,2]
[363259213,1748652648465,-1540.39,0.00017534,2]
[363259215,1748652648474,-2452.49,0.00017534,2]
[363259217,1748652648484,-430.0,0.00017534,2]
[363259219,1748652648494,-430.0,0.00017534,2]
[363259221,1748652648503,-2586.01,0.00017534,2]
[363259223,1748652648513,-543.35,0.00017534,2]
[363259224,1748652648523,-430.0,0.00017534,2]
[363259226,1748652648533,-618.46,0.00017534,2]
[363259228,1748652648542,-4723.72,0.00017534,2]
[363259230,1748652648552,-430.0,0.00017534,2]
[363259232,1748652648562,-430.0,0.00017534,2]
[363259234,1748652648571,-527.01,0.00017534,2]
[363259236,1748652648581,-445.99,0.00017534,2]
[363259238,1748652648590,-910.35,0.00017534,2]
[363259240,1748652648600,-430.0,0.00017534,2]
[363259242,1748652648610,-545.39,0.00017534,2]
[363259244,1748652648619,-430.0,0.00017534,2]
[363259246,1748652648628,-430.0,0.00017534,2]
[363259248,1748652648637,-3010.76,0.00017534,2]
[363259250,1748652648647,-565.13,0.00017534,2]
[363259251,1748652648657,-430.0,0.00017534,2]
[363259252,1748652648666,-966.84,0.00017534,2]
[363259253,1748652648676,-3947.32,0.00017534,2]
[363259254,1748652648685,-1737.31,0.00017534,2]
[363259255,1748652648695,-430.0,0.00017534,2]
[363259256,1748652648707,-576.03,0.00017534,2]
[363259257,1748652648717,-3363.45,0.00017534,2]
[363259258,1748652648727,-430.0,0.00017534,2]
[363259259,1748652648737,-430.0,0.00017534,2]
[363259260,1748652648747,-1216.53,0.00017534,2]
[363259261,1748652648756,-629.35,0.00017534,2]
[363259262,1748652648766,-846.78,0.00017534,2]
[363259263,1748652648775,-151.0,0.00017534,2]
[363259264,1748652648787,-430.0,0.00017534,2]
[363259265,1748652648796,-430.0,0.00017534,2]
[363259266,1748652648806,-430.0,0.00017534,2]
[363259267,1748652648815,-430.0,0.00017534,2]
[363259268,1748652648825,-430.0,0.00017534,2]
[363259269,1748652648835,-430.0,0.00017534,2]
[363259270,1748652648845,-430.0,0.00017534,2]
[363259271,1748652648855,-496.57,0.00017534,2]
[363259273,1748652648864,-430.0,0.00017534,2]
[363259275,1748652648874,-430.0,0.00017534,2]
[363259277,1748652648883,-430.0,0.00017534,2]
[363259279,1748652648892,-468.99,0.00017534,2]
[363259281,1748652648902,-987.7,0.00017534,2]
[363259283,1748652648912,-2149.03,0.00017534,2]
[363259285,1748652648921,-430.0,0.00017534,2]
[363259287,1748652648930,-430.0,0.00017534,2]
[363259289,1748652648939,-430.0,0.00017534,2]
[363259291,1748652648948,-430.0,0.00017534,2]
[363259293,1748652648957,-430.0,0.00017534,2]
[363259295,1748652648966,-1725.91,0.00017534,2]
[363259297,1748652648976,-151.0,0.00017534,2]
[363259299,1748652648985,-1766.85,0.00017534,2]
[363259301,1748652648996,-151.0,0.00017534,2]
[363259303,1748652649005,-430.0,0.00017534,2]
[363259305,1748652649014,-430.0,0.00017534,2]
[363259307,1748652649024,-3215.63,0.00017534,2]
[363259309,1748652649033,-430.0,0.00017534,2]
[363259311,1748652649042,-430.0,0.00017534,2]
[363259313,1748652649051,-3000.0,0.00017534,2]
[363259315,1748652649060,-5000.0,0.00017697,2]
[363259317,1748652649069,-6279.32326587,0.00017762,2]
[363259319,1748652649079,-1500.0,0.00017766,2]
[363259321,1748652649088,-151.0,0.00017767,2]
[363259323,1748652649097,-164.494903,0.00017767,2]
[363259325,1748652649106,-289.288518,0.00017767,2]
[363259327,1748652649115,-289.288518,0.00017767,2]
[363259329,1748652649124,-430.0,0.00017807,2]
[363259331,1748652649134,-430.0,0.00017807,2]
[363259333,1748652649143,-1175.73,0.00017807,2]
[363259335,1748652649153,-430.0,0.00017807,2]
[363259337,1748652649162,-2949.65,0.00017807,2]
[363259339,1748652649171,-3181.73,0.00017807,2]
[363259341,1748652649181,-804.95,0.00017807,2]
[363259343,1748652649191,-430.0,0.00017807,2]
[363259345,1748652649201,-1830.99,0.00017807,2]
[363259347,1748652649211,-1190.24,0.00017807,2]
[363259349,1748652649220,-430.0,0.00017807,2]
[363259351,1748652649230,-430.0,0.00017808,2]
[363259353,1748652649240,-430.0,0.00017808,2]
[363259355,1748652649252,-430.0,0.00017808,2]
[363259358,1748652649263,-430.0,0.00017808,2]
[363259360,1748652649272,-1259.52,0.00017808,2]
[363259362,1748652649282,-430.0,0.00017808,2]
[363259363,1748652649292,-430.0,0.00017808,2]
[363259365,1748652649301,-1601.0,0.00017808,2]
[363259368,1748652649311,-1540.39,0.00017808,2]
[363259370,1748652649321,-2452.49,0.00017808,2]
[363259372,1748652649331,-430.0,0.00017808,2]
[363259374,1748652649340,-430.0,0.00017808,2]
[363259376,1748652649350,-2586.01,0.00017808,2]
[363259378,1748652649360,-543.35,0.00017808,2]
[363259380,1748652649369,-430.0,0.00017808,2]
[363259382,1748652649379,-618.46,0.00017808,2]
[363259384,1748652649388,-4723.72,0.00017808,2]
[363259386,1748652649398,-430.0,0.00017808,2]
[363259388,1748652649407,-430.0,0.00017808,2]
[363259390,1748652649417,-527.01,0.00017808,2]
[363259392,1748652649427,-445.99,0.00017808,2]
[363259394,1748652649437,-910.35,0.00017808,2]
[363259396,1748652649447,-430.0,0.00017808,2]
[363259398,1748652649456,-545.39,0.00017808,2]
[363259400,1748652649465,-430.0,0.00017808,2]
[363259402,1748652649475,-430.0,0.00017808,2]
[363259404,1748652649485,-3010.76,0.00017808,2]
[363259406,1748652649494,-565.13,0.00017808,2]
[363259408,1748652649505,-430.0,0.00017808,2]
[363259410,1748652649515,-966.84,0.00017808,2]
[363259412,1748652649525,-1737.31,0.00017808,2]
[363259414,1748652649534,-3947.32,0.00017808,2]
[363259416,1748652649543,-430.0,0.00017808,2]
[363259418,1748652649552,-576.03,0.00017808,2]
[363259420,1748652649562,-3363.45,0.00017808,2]
[363259422,1748652649571,-430.0,0.00017808,2]
[363259424,1748652649580,-430.0,0.00017808,2]
[363259427,1748652649599,-1216.53,0.00017808,2]
[363259429,1748652649610,-629.35,0.00017808,2]
[363259431,1748652649619,-846.78,0.00017808,2]
[363259433,1748652649629,-430.0,0.00017808,2]
[363259435,1748652649639,-160.98,0.00017808,2]
[363259437,1748652649649,-430.0,0.00017808,2]
[363259439,1748652649658,-430.0,0.00017808,2]
[363259441,1748652649668,-430.0,0.00017808,2]
[363259443,1748652649677,-430.0,0.00017808,2]
[363259445,1748652649687,-430.0,0.00017808,2]
[363259462,1748652649842,-496.57,0.00017808,2]
[363259464,1748652649851,-430.0,0.00017808,2]
[363259466,1748652649860,-430.0,0.00017808,2]
[363259468,1748652649869,-430.0,0.00017808,2]
[363259470,1748652649878,-468.99,0.00017808,2]
[363259472,1748652649889,-987.7,0.00017808,2]
[363259474,1748652649898,-2149.03,0.00017808,2]
[363259476,1748652649907,-430.0,0.00017808,2]
[363259478,1748652649917,-430.0,0.00017808,2]
[363259480,1748652649926,-430.0,0.00017808,2]
[363259482,1748652649936,-430.0,0.00017808,2]
[363259484,1748652649946,-430.0,0.00017808,2]
[363259486,1748652649956,-1725.91,0.00017808,2]
[363259488,1748652649966,-1766.85,0.00017808,2]
[363259490,1748652649975,-430.0,0.00017808,2]
[363259492,1748652649985,-430.0,0.00017808,2]
[363259494,1748652649994,-3215.63,0.00017808,2]
[363259496,1748652650003,-430.0,0.00017808,2]
[363259498,1748652650013,-587.0,0.00017849,2]
[363259500,1748652650022,-314.0,0.00017849,2]
[363259502,1748652650031,-587.0,0.00017849,2]
[363259504,1748652650041,-587.0,0.00017849,2]
[363259506,1748652650050,-180.0,0.00017849,2]
[363259508,1748652650059,-1500.0,0.00017857,2]
[363259510,1748652650069,-1000.0,0.00017857,2]
[363259512,1748652650079,-1500.0,0.00017857,2]
[363259514,1748652650088,-500.0,0.00017864,2]
[363259516,1748652650097,-2021.75294258,0.00017864,2]
[363259518,1748652650107,-500.0,0.00017864,2]
[363259520,1748652650116,-191.26979472,0.00017926,2]
[363259522,1748652650125,-2949.65,0.00017999,2]
[363259524,1748652650135,-2949.65,0.00017999,2]
[363259526,1748652650144,-2949.65,0.00017999,2]
[363259528,1748652650154,-2949.65,0.00017999,2]
[363259530,1748652650163,-2949.65,0.00017999,2]
[363259532,1748652650172,-2949.65,0.00017999,2]
[363259534,1748652650182,-2949.65,0.00017999,2]
[363259536,1748652650191,-2949.65,0.00017999,2]
[363259538,1748652650201,-2949.65,0.00017999,2]
[363259540,1748652650210,-2949.65,0.00017999,2]
[363259542,1748652650220,-162.56,0.00018,2]
[363259544,1748652650229,-2000.0,0.00018021,2]
[363259546,1748652650239,-2351.0,0.00018027,2]
[363259548,1748652650250,-151.0,0.00018049,2]
[363259550,1748652650260,-207.4,0.00018049,2]
[363259552,1748652650270,-151.0,0.00018049,2]
[363259554,1748652650279,-194.08542105,0.00018049,2]
[363259556,1748652650289,-300.0,0.00018049,2]
[363259558,1748652650298,-300.0,0.00018049,2]
[363259560,1748652650307,-300.0,0.00018049,2]
[363259562,1748652650317,-300.0,0.00018049,2]
[363259564,1748652650326,-300.0,0.00018049,2]
[363259566,1748652650335,-300.0,0.00018049,2]
[363259568,1748652650345,-300.0,0.00018049,2]
[363259570,1748652650354,-300.0,0.00018049,2]
[363259572,1748652650363,-300.0,0.00018049,2]
[363259574,1748652650373,-300.0,0.00018049,2]
[363259577,1748652650383,-300.0,0.00018049,2]
[363259579,1748652650393,-5000.0,0.00018049,2]
[363259580,1748652650402,-300.0,0.00018049,2]
[363259582,1748652650412,-300.0,0.00018049,2]
[363259585,1748652650422,-300.0,0.00018049,2]
[363259587,1748652650431,-300.0,0.00018049,2]
[363259588,1748652650441,-200.59691172,0.00018049,2]
[363259590,1748652650450,-151.0,0.00018049,2]
[363259593,1748652650460,-2000.0,0.00018053,2]
[363259595,1748652650469,-176.414694,0.00018055,2]
[363259597,1748652650479,-572.1885402,0.00018055,2]
[363259598,1748652650489,-572.1885402,0.00018055,2]
[363259600,1748652650499,-162.6182772,0.00018055,2]
[363259602,1748652650509,-189.5041691,0.00018055,2]
[363259604,1748652650519,-998.63634442,0.00018059,5]
[363259606,1748652650528,-2949.65,0.00018067,2]
[363259608,1748652650537,-2500.0,0.00018068,2]
[363259610,1748652650547,-151.0,0.00018068,2]
[363259612,1748652650556,-152.693127,0.00018072,2]
[363259614,1748652650566,-6279.32326587,0.00018072,2]
[363259616,1748652650575,-430.0,0.00018081,2]
[363259618,1748652650586,-430.0,0.00018081,2]
[363259620,1748652650595,-1175.73,0.00018081,2]
[363259622,1748652650604,-430.0,0.00018081,2]
[363259624,1748652650614,-3181.73,0.00018081,2]
[363259626,1748652650624,-804.95,0.00018081,2]
[363259628,1748652650633,-430.0,0.00018081,2]
[363259630,1748652650642,-1830.99,0.00018081,2]
[363259632,1748652650651,-1190.24,0.00018081,2]
[363259634,1748652650661,-430.0,0.00018081,2]
[363259636,1748652650671,-430.0,0.00018082,2]
[363259638,1748652650680,-430.0,0.00018082,2]
[363259640,1748652650689,-430.0,0.00018082,2]
[363259642,1748652650700,-430.0,0.00018082,2]
[363259644,1748652650710,-1259.52,0.00018082,2]
[363259646,1748652650719,-430.0,0.00018082,2]
[363259648,1748652650729,-430.0,0.00018082,2]
[363259650,1748652650740,-1601.0,0.00018082,2]
[363259652,1748652650750,-1540.39,0.00018082,2]
[363259654,1748652650759,-2452.49,0.00018082,2]
[363259656,1748652650768,-430.0,0.00018082,2]
[363259658,1748652650780,-430.0,0.00018082,2]
[363259660,1748652650789,-2586.01,0.00018082,2]
[363259662,1748652650799,-430.0,0.00018082,2]
[363259664,1748652650808,-543.35,0.00018082,2]
[363259667,1748652650818,-618.46,0.00018082,2]
[363259668,1748652650827,-4723.72,0.00018082,2]
[363259670,1748652650836,-430.0,0.00018082,2]
[363259672,1748652650845,-430.0,0.00018082,2]
[363259674,1748652650855,-527.01,0.00018082,2]
[363259676,1748652650865,-445.99,0.00018082,2]
[363259678,1748652650875,-910.35,0.00018082,2]
[363259681,1748652650885,-430.0,0.00018082,2]
[363259683,1748652650895,-545.39,0.00018082,2]
[363259685,1748652650904,-430.0,0.00018082,2]
[363259687,1748652650913,-430.0,0.00018082,2]
[363259688,1748652650922,-151.0,0.00018082,2]
[363259690,1748652650931,-3010.76,0.00018082,2]
[363259692,1748652650942,-565.13,0.00018082,2]
[363259694,1748652650951,-430.0,0.00018082,2]
[363259696,1748652650960,-966.84,0.00018082,2]
[363259698,1748652650970,-1737.31,0.00018082,2]
[363259700,1748652650979,-3947.32,0.00018082,2]
[363259702,1748652650989,-430.0,0.00018082,2]
[363259704,1748652650999,-576.03,0.00018082,2]
[363259706,1748652651008,-3363.45,0.00018082,2]
[363259708,1748652651017,-430.0,0.00018082,2]
[363259710,1748652651028,-1216.53,0.00018082,2]
[363259712,1748652651037,-629.35,0.00018082,2]
[363259714,1748652651047,-846.78,0.00018082,2]
[363259716,1748652651056,-430.0,0.00018082,2]
[363259718,1748652651065,-430.0,0.00018082,2]
[363259720,1748652651075,-430.0,0.00018082,2]
[363259722,1748652651084,-430.0,0.00018082,2]
[363259724,1748652651094,-430.0,0.00018082,2]
[363259726,1748652651104,-408.10338702,0.00018082,2]
[363259728,1748652651113,-496.57,0.00018082,2]
[363259730,1748652651124,-430.0,0.00018082,2]
[363259732,1748652651133,-430.0,0.00018082,2]
[363259734,1748652651143,-289.288518,0.00018082,2]
[363259736,1748652651152,-430.0,0.00018082,2]
[363259738,1748652651161,-468.99,0.00018082,2]
[363259740,1748652651170,-987.7,0.00018082,2]
[363259742,1748652651179,-2149.03,0.00018082,2]
[363259744,1748652651189,-289.288518,0.00018082,2]
[363259746,1748652651199,-430.0,0.00018082,2]
[363259748,1748652651208,-430.0,0.00018082,2]
[363259750,1748652651217,-430.0,0.00018082,2]
[363259752,1748652651227,-430.0,0.00018082,2]
[363259754,1748652651236,-430.0,0.00018082,2]
[363259756,1748652651246,-1725.91,0.00018082,2]
[363259758,1748652651255,-1766.85,0.00018082,2]
[363259760,1748652651265,-430.0,0.00018082,2]
[363259762,1748652651274,-430.0,0.00018082,2]
[363259764,1748652651284,-3215.63,0.00018082,2]
[363259766,1748652651293,-430.0,0.00018082,2]
[363259768,1748652651303,-157.5499743,0.00018082,2]
[363259770,1748652651313,-4000.0,0.00018082,2]
[363259772,1748652651322,-2949.65,0.00018141,2]
[363259774,1748652651332,-157.5499743,0.00018164,2]
[363259776,1748652651341,-3096.95,0.00018198,2]
[363259777,1748652651351,-157.5499743,0.00018247,2]
[363259779,1748652651361,-8132.33264479,0.00018256,2]
[363259782,1748652651370,-430.0,0.00018355,2]
[363259784,1748652651380,-1175.73,0.00018355,2]
[363259786,1748652651390,-430.0,0.00018355,2]
[363259788,1748652651400,-3181.73,0.00018355,2]
[363259790,1748652651410,-804.95,0.00018355,2]
[363259792,1748652651420,-430.0,0.00018355,2]
[363259793,1748652651429,-575.560356,0.00018355,2]
[363259795,1748652651438,-575.560356,0.00018355,2]
[363259797,1748652651448,-151.0,0.00018355,2]
[363259799,1748652651457,-1830.99,0.00018355,2]
[363259802,1748652651466,-1190.24,0.00018355,2]
[363259803,1748652651476,-430.0,0.00018355,2]
[363259805,1748652651485,-430.0,0.00018356,2]
[363259808,1748652651496,-430.0,0.00018356,2]
[363259809,1748652651506,-430.0,0.00018356,2]
[363259811,1748652651515,-430.0,0.00018356,2]
[363259813,1748652651523,-151.0,0.00018356,2]
[363259815,1748652651529,-1259.52,0.00018356,2]
[363259817,1748652651537,-430.0,0.00018356,2]
[363259819,1748652651546,-151.0,0.00018356,2]
[363259821,1748652651555,-430.0,0.00018356,2]
[363259823,1748652651565,-1601.0,0.00018356,2]
[363259825,1748652651574,-1540.39,0.00018356,2]
[363259827,1748652651585,-2452.49,0.00018356,2]
[363259829,1748652651596,-151.0,0.00018356,2]
[363259831,1748652651605,-430.0,0.00018356,2]
[363259833,1748652651614,-151.0,0.00018356,2]
[363259835,1748652651625,-430.0,0.00018356,2]
[363259837,1748652651634,-2586.01,0.00018356,2]
[363259839,1748652651643,-430.0,0.00018356,2]
[363259841,1748652651652,-543.35,0.00018356,2]
[363259843,1748652651662,-618.46,0.00018356,2]
[363259845,1748652651671,-282.884424,0.00018356,2]
[363259847,1748652651680,-282.884424,0.00018356,2]
[363259849,1748652651689,-4723.72,0.00018356,2]
[363259851,1748652651701,-430.0,0.00018356,2]
[363259853,1748652651710,-430.0,0.00018356,2]
[363259855,1748652651719,-527.01,0.00018356,2]
[363259857,1748652651728,-445.99,0.00018356,2]
[363259859,1748652651739,-910.35,0.00018356,2]
[363259861,1748652651748,-430.0,0.00018356,2]
[363259863,1748652651757,-545.39,0.00018356,2]
[363259865,1748652651766,-430.0,0.00018356,2]
[363259867,1748652651775,-430.0,0.00018356,2]
[363259869,1748652651786,-3010.76,0.00018356,2]
[363259871,1748652651795,-565.13,0.00018356,2]
[363259873,1748652651805,-430.0,0.00018356,2]
[363259875,1748652651814,-966.84,0.00018356,2]
[363259877,1748652651823,-1737.31,0.00018356,2]
[363259879,1748652651832,-3947.32,0.00018356,2]
[363259881,1748652651841,-430.0,0.00018356,2]
[363259883,1748652651851,-576.03,0.00018356,2]
[363259885,1748652651860,-3363.45,0.00018356,2]
[363259887,1748652651870,-430.0,0.00018356,2]
[363259889,1748652651880,-1216.53,0.00018356,2]
[363259901,1748652651976,-629.35,0.00018356,2]
[363259903,1748652651994,-846.78,0.00018356,2]
[363259905,1748652652004,-430.0,0.00018356,2]
[363259907,1748652652013,-430.0,0.00018356,2]
[363259909,1748652652023,-430.0,0.00018356,2]
[363259911,1748652652032,-430.0,0.00018356,2]
[363259913,1748652652041,-430.0,0.00018356,2]
[363259915,1748652652050,-496.57,0.00018356,2]
[363259917,1748652652060,-430.0,0.00018356,2]
[363259919,1748652652069,-430.0,0.00018356,2]
[363259921,1748652652078,-430.0,0.00018356,2]
[363259923,1748652652087,-468.99,0.00018356,2]
[363259924,1748652652097,-987.7,0.00018356,2]
[363259925,1748652652106,-2149.03,0.00018356,2]
[363259926,1748652652115,-430.0,0.00018356,2]
[363259927,1748652652125,-430.0,0.00018356,2]
[363259928,1748652652134,-430.0,0.00018356,2]
[363259929,1748652652143,-430.0,0.00018356,2]
[363259930,1748652652152,-430.0,0.00018356,2]
[363259931,1748652652162,-1725.91,0.00018356,2]
[363259932,1748652652171,-1766.85,0.00018356,2]
[363259933,1748652652181,-430.0,0.00018356,2]
[363259934,1748652652191,-430.0,0.00018356,2]
[363259935,1748652652200,-3215.63,0.00018356,2]
[363259936,1748652652209,-430.0,0.00018356,2]
[363259937,1748652652218,-157.5499743,0.00018356,2]
[363259938,1748652652228,-2949.65,0.00018382,2]
[363259939,1748652652237,-6279.32326587,0.00018383,2]
[363259940,1748652652246,-2949.65,0.00018398,2]
[363259941,1748652652256,-2949.65,0.00018398,2]
[363259942,1748652652265,-2949.65,0.00018398,2]
[363259943,1748652652275,-2949.65,0.00018398,2]
[363259944,1748652652284,-2949.75,0.00018398,2]
[363259946,1748652652293,-2000.0,0.00018405,2]
[363259948,1748652652303,-157.5499743,0.00018438,2]
[363259950,1748652652312,-1355.4104408,0.00018493,19]
[363259952,1748652652322,-157.5499743,0.00018521,2]
[363259954,1748652652331,-500.0,0.0001853,2]
[363259956,1748652652341,-500.0,0.0001853,2]
[363259959,1748652652351,-388.81986765,0.0001853,2]
[363259961,1748652652360,-151.092993,0.0001853,2]
[363259963,1748652652370,-500.0,0.00018569,2]
[363259965,1748652652379,-600.0,0.00018588,2]
[363259967,1748652652389,-5000.0,0.00018597,2]
[363259968,1748652652398,-1000.0,0.00018601,2]
[363259970,1748652652407,-157.5499743,0.00018603,2]
[363259972,1748652652416,-430.0,0.00018629,2]
[363259974,1748652652425,-1175.73,0.00018629,2]
[363259976,1748652652435,-430.0,0.00018629,2]
[363259978,1748652652444,-3181.73,0.00018629,2]
[363259981,1748652652453,-804.95,0.00018629,2]
[363259982,1748652652463,-430.0,0.00018629,2]
[363259984,1748652652472,-1830.99,0.00018629,2]
[363259987,1748652652481,-1190.24,0.00018629,2]
[363259989,1748652652490,-430.0,0.00018629,2]
[363259990,1748652652501,-430.0,0.0001863,2]
[363259992,1748652652511,-430.0,0.0001863,2]
[363259994,1748652652520,-430.0,0.0001863,2]
[363259996,1748652652529,-430.0,0.0001863,2]
[363259998,1748652652538,-1259.52,0.0001863,2]
[363260000,1748652652547,-430.0,0.0001863,2]
[363260002,1748652652557,-430.0,0.0001863,2]
[363260004,1748652652566,-1601.0,0.0001863,2]
[363260006,1748652652575,-1540.39,0.0001863,2]
[363260008,1748652652584,-2452.49,0.0001863,2]
[363260010,1748652652593,-430.0,0.0001863,2]
[363260012,1748652652603,-2586.01,0.0001863,2]
[363260014,1748652652614,-151.0,0.0001863,2]
[363260016,1748652652623,-430.0,0.0001863,2]
[363260018,1748652652632,-543.35,0.0001863,2]
[363260020,1748652652642,-618.46,0.0001863,2]
[363260022,1748652652651,-4723.72,0.0001863,2]
[363260024,1748652652660,-430.0,0.0001863,2]
[363260027,1748652652669,-430.0,0.0001863,2]
[363260029,1748652652679,-527.01,0.0001863,2]
[363260030,1748652652688,-445.99,0.0001863,2]
[363260032,1748652652697,-910.35,0.0001863,2]
[363260034,1748652652711,-430.0,0.0001863,2]
[363260036,1748652652720,-545.39,0.0001863,2]
[363260038,1748652652729,-430.0,0.0001863,2]
[363260040,1748652652738,-341.78112797,0.0001863,2]
[363260042,1748652652748,-151.0,0.0001863,2]
[363260044,1748652652757,-3010.76,0.0001863,2]
[363260046,1748652652768,-565.13,0.0001863,2]
[363260048,1748652652777,-430.0,0.0001863,2]
[363260050,1748652652786,-966.84,0.0001863,2]
[363260052,1748652652796,-1737.31,0.0001863,2]
[363260054,1748652652805,-3947.32,0.0001863,2]
[363260056,1748652652814,-430.0,0.0001863,2]
[363260058,1748652652824,-576.03,0.0001863,2]
[363260060,1748652652834,-3363.45,0.0001863,2]
[363260062,1748652652843,-430.0,0.0001863,2]
[363260065,1748652652852,-1216.53,0.0001863,2]
[363260067,1748652652862,-629.35,0.0001863,2]
[363260068,1748652652872,-846.78,0.0001863,2]
[363260070,1748652652882,-430.0,0.0001863,2]
[363260072,1748652652891,-430.0,0.0001863,2]
[363260074,1748652652900,-430.0,0.0001863,2]
[363260076,1748652652909,-430.0,0.0001863,2]
[363260078,1748652652918,-496.57,0.0001863,2]
[363260080,1748652652927,-430.0,0.0001863,2]
[363260082,1748652652937,-430.0,0.0001863,2]
[363260084,1748652652946,-289.288518,0.0001863,2]
[363260086,1748652652955,-430.0,0.0001863,2]
[363260088,1748652652965,-468.99,0.0001863,2]
[363260090,1748652652974,-987.7,0.0001863,2]
[363260092,1748652652983,-2149.03,0.0001863,2]
[363260094,1748652652992,-289.288518,0.0001863,2]
[363260096,1748652653007,-430.0,0.0001863,2]
[363260099,1748652653016,-430.0,0.0001863,2]
[363260100,1748652653027,-430.0,0.0001863,2]
[363260103,1748652653036,-237.15131857,0.0001863,2]
[363260104,1748652653045,-430.0,0.0001863,2]
[363260107,1748652653055,-1725.91,0.0001863,2]
[363260109,1748652653064,-1766.85,0.0001863,2]
[363260110,1748652653073,-430.0,0.0001863,2]
[363260112,1748652653082,-430.0,0.0001863,2]
[363260115,1748652653092,-3215.63,0.0001863,2]
[363260117,1748652653101,-430.0,0.0001863,2]
[363260119,1748652653110,-5000.0,0.0001863,2]
[363260120,1748652653119,-153.0,0.00018658,2]
[363260122,1748652653129,-153.0,0.00018658,2]
[363260125,1748652653138,-153.0,0.00018658,2]
[363260127,1748652653147,-2387.658062,0.00018659,2]
[363260129,1748652653157,-157.5499743,0.00018685,2]
[363260131,1748652653167,-6279.32326587,0.00018693,2]
[363260133,1748652653176,-151.0,0.00018696,2]
[363260135,1748652653186,-151.0,0.00018696,2]
[363260137,1748652653195,-151.0,0.00018696,2]
[363260139,1748652653205,-151.0,0.00018696,2]
[363260141,1748652653214,-151.0,0.00018696,2]
[363260143,1748652653223,-175.734,0.00018696,2]
[363260145,1748652653232,-175.734,0.00018696,2]
[363260147,1748652653242,-151.0,0.00018696,2]